fUST/lending_fUST_20250701
["ID","MTS","AMOUNT","RATE_DAILY","PERIOD"]
[368787921,1751367047502,-500.528,0.00022287,2]
[368787923,1751367047511,-557.35987638,0.00022314,7]
[368787925,1751367047521,-222.0,0.00022323,2]
[368787927,1751367047531,-168.0,0.00022329,2]
[368787929,1751367047541,-626.22,0.00022351,2]
[368787931,1751367047550,-504.45,0.00022351,2]
[368787933,1751367047560,-460.0,0.00022351,2]
[368787935,1751367047569,-712.93,0.00022351,2]
[368787936,1751367047578,-396.88044403,0.00022352,2]
[368787937,1751367047587,-580.25,0.00022352,2]
[368787938,1751367047597,-950.54,0.00022352,2]
[368787939,1751367047606,-168.0,0.00022385,2]
[368787940,1751367047615,-1082.72,0.00022398,3]
[368787941,1751367047624,-151.0,0.000224,9]
[368787942,1751367047635,-151.0,0.000224,9]
[368787943,1751367047644,-300.0,0.00022466,2]
[368787945,1751367047653,-1082.72,0.00022498,5]
[368787946,1751367047662,-250.0,0.00022521,2]
[368787948,1751367047672,-1431.181619,0.0002254,4]
[368787951,1751367047682,-557.35987638,0.0002259,7]
[368787953,1751367047693,-1082.72,0.00022598,5]
[368787955,1751367047702,-242.010065,0.00022603,2]
[368787957,1751367047712,-626.22,0.00022625,2]
[368787959,1751367047721,-504.45,0.00022625,2]
[368787961,1751367047730,-460.0,0.00022625,2]
[368787963,1751367047739,-712.93,0.00022625,2]
[368787965,1751367047749,-580.25,0.00022626,2]
[368787967,1751367047758,-950.54,0.00022626,2]
[368787969,1751367047768,-4200.0,0.0002266,2]
[368787971,1751367047779,-1082.72,0.00022698,5]
[368787973,1751367047788,-159.3450821,0.00022712,2]
[368787975,1751367047798,-575.5050994,0.00022712,2]
[368787977,1751367047808,-177.5971231,0.00022712,2]
[368787979,1751367047817,-153.0,0.00022712,2]
[368787981,1751367047826,-177.5971231,0.00022712,2]
[368787983,1751367047835,-153.0,0.00022712,2]
[368787985,1751367047844,-575.5050994,0.00022712,2]
[368787987,1751367047854,-159.3450821,0.00022712,2]
[368787989,1751367047863,-159.3450821,0.00022712,2]
[368787991,1751367047872,-177.5971231,0.00022712,2]
[368787993,1751367047881,-575.5050994,0.00022712,2]
[368787995,1751367047891,-153.0,0.00022712,2]
[368787997,1751367047901,-159.3450821,0.00022712,2]
[368787999,1751367047910,-177.5971231,0.00022712,2]
[368788001,1751367047920,-575.5050994,0.00022712,2]
[368788003,1751367047929,-575.5050994,0.00022712,2]
[368788005,1751367047939,-177.5971231,0.00022712,2]
[368788007,1751367047948,-153.0,0.00022712,2]
[368788009,1751367047957,-159.3450821,0.00022712,2]
[368788011,1751367047967,-159.3450821,0.00022712,2]
[368788013,1751367047976,-575.5050994,0.00022712,2]
[368788015,1751367047986,-177.5971231,0.00022712,2]
[368788017,1751367047996,-159.3450821,0.00022712,2]
[368788019,1751367048006,-575.5050994,0.00022712,2]
[368788021,1751367048015,-153.0,0.00022712,2]
[368788023,1751367048025,-177.5971231,0.00022712,2]
[368788025,1751367048035,-177.5971231,0.00022712,2]
[368788027,1751367048045,-575.5050994,0.00022712,2]
[368788029,1751367048055,-159.3450821,0.00022712,2]
[368788031,1751367048067,-177.5971231,0.00022712,2]
[368788033,1751367048077,-575.5050994,0.00022712,2]
[368788035,1751367048087,-153.0,0.00022712,2]
[368788037,1751367048097,-159.3450821,0.00022712,2]
[368788039,1751367048106,-575.5050994,0.00022712,2]
[368788041,1751367048116,-158.9781,0.00022712,2]
[368788043,1751367048126,-177.5971231,0.00022712,2]
[368788045,1751367048136,-177.1567876,0.00022712,2]
[368788047,1751367048146,-153.0,0.00022712,2]
[368788049,1751367048156,-575.5050994,0.00022712,2]
[368788051,1751367048166,-575.5050994,0.00022712,2]
[368788053,1751367048176,-153.0,0.00022712,2]
[368788055,1751367048186,-573.322805,0.00022712,2]
[368788057,1751367048195,-500.0,0.00022773,2]
[368788059,1751367048205,-168.0,0.00022775,2]
[368788061,1751367048215,-966.45,0.00022797,2]
[368788063,1751367048225,-1082.72,0.00022798,4]
[368788065,1751367048237,-151.0,0.000228,7]
[368788067,1751367048247,-2067.87134883,0.000228,2]
[368788069,1751367048257,-231.28369723,0.00022802,2]
[368788071,1751367048267,-557.35987638,0.00022866,8]
[368788073,1751367048277,-1082.72,0.00022898,2]
[368788075,1751367048288,-626.22,0.00022899,2]
[368788077,1751367048298,-504.45,0.00022899,2]
[368788079,1751367048308,-460.0,0.00022899,2]
[368788081,1751367048318,-712.93,0.00022899,2]
[368788083,1751367048328,-72791.63,0.000229,2]
[368788085,1751367048337,-580.25,0.000229,2]
[368788087,1751367048347,-950.54,0.000229,2]
[368788089,1751367048360,-1450.29037334,0.00022904,2]
[368788091,1751367048370,-168.0,0.00022912,2]
[368788093,1751367048381,-823.0,0.00022962,2]
[368788095,1751367048391,-1082.72,0.00022998,2]
[368788097,1751367048402,-1000.0,0.00023,23]
[368788099,1751367048411,-150.0,0.00023,7]
[368788101,1751367048420,-500.0,0.00023008,2]
[368788103,1751367048430,-167.0,0.00023014,7]
[368788105,1751367048441,-450.0,0.00023014,2]
[368788107,1751367048451,-401.0,0.00023014,7]
[368788109,1751367048462,-350.0,0.00023068,2]
[368788111,1751367048471,-500.0,0.00023076,2]
[368788113,1751367048481,-500.0,0.00023078,2]
[368788115,1751367048492,-1082.72,0.00023098,2]
[368788117,1751367048502,-2000.0,0.000231,2]
[368788119,1751367048512,-557.35987638,0.00023141,8]
[368788121,1751367048522,-626.22,0.00023173,2]
[368788123,1751367048532,-504.45,0.00023173,2]
[368788125,1751367048542,-460.0,0.00023173,2]
[368788127,1751367048551,-712.93,0.00023173,2]
[368788129,1751367048561,-580.25,0.00023174,2]
[368788131,1751367048570,-950.54,0.00023174,2]
[368788133,1751367048581,-1082.72,0.00023198,3]
[368788135,1751367048590,-4800.0,0.00023208,2]
[368788137,1751367048599,-168.0,0.00023274,2]
[368788139,1751367048609,-1082.72,0.00023298,6]
[368788141,1751367048619,-4798.71315359,0.00023299,2]
[368788143,1751367048629,-835.46,0.000233,7]
[368788145,1751367048638,-151.0,0.000233,8]
[368788147,1751367048649,-1082.72,0.00023398,2]
[368788149,1751367048659,-557.35987638,0.00023417,9]
[368788151,1751367048669,-626.22,0.00023447,2]
[368788153,1751367048679,-504.45,0.00023447,2]
[368788155,1751367048689,-460.0,0.00023447,2]
[368788157,1751367048699,-712.93,0.00023447,2]
[368788159,1751367048709,-580.25,0.00023448,2]
[368788162,1751367048718,-950.54,0.00023448,2]
[368788164,1751367048729,-1082.72,0.00023498,6]
[368788166,1751367048739,-54012.4,0.000235,7]
[368788168,1751367048748,-7652.89,0.000235,7]
[368788170,1751367048758,-151.0,0.000235,7]
[368788172,1751367048767,-151.0,0.000235,7]
[368788174,1751367048777,-151.0,0.000235,7]
[368788176,1751367048786,-151.0,0.000235,7]
[368788178,1751367048795,-151.0,0.000235,7]
[368788180,1751367048805,-151.0,0.000235,7]
[368788182,1751367048815,-847.53272281,0.000235,7]
[368788184,1751367048824,-168.0,0.00023529,2]
[368788186,1751367048834,-462.16573223,0.00023562,2]
[368788188,1751367048844,-1082.72,0.00023598,6]
[368788190,1751367048853,-450.0,0.00023616,2]
[368788192,1751367048863,-557.35987638,0.00023693,9]
[368788194,1751367048872,-1082.72,0.00023698,7]
[368788196,1751367048882,-2000.0,0.000237,2]
[368788198,1751367048893,-2000.0,0.000237,2]
[368788200,1751367048904,-626.22,0.00023721,2]
[368788202,1751367048914,-504.45,0.00023721,2]
[368788204,1751367048923,-484.2,0.00023721,2]
[368788206,1751367048933,-712.93,0.00023721,2]
[368788208,1751367048943,-580.25,0.00023722,2]
[368788210,1751367048952,-950.54,0.00023722,2]
[368788212,1751367048962,-5400.0,0.00023756,2]
[368788214,1751367048972,-1082.72,0.00023798,5]
[368788216,1751367048983,-72791.63,0.000238,2]
[368788218,1751367048992,-151.280473,0.000238,7]
[368788220,1751367049002,-151.0,0.000238,7]
[368788222,1751367049012,-151.0,0.000238,7]
[368788224,1751367049022,-151.0,0.000238,2]
[368788226,1751367049032,-157.334981,0.000238,2]
[368788228,1751367049042,-151.0,0.000238,7]
[368788230,1751367049052,-151.0,0.000238,7]
[368788232,1751367049062,-151.0,0.000238,7]
[368788234,1751367049073,-272.341792,0.000238,7]
[368788236,1751367049083,-151.0,0.000238,7]
[368788238,1751367049094,-151.0,0.000238,7]
[368788240,1751367049105,-151.0,0.000238,7]
[368788242,1751367049115,-151.0,0.000238,7]
[368788245,1751367049125,-151.0,0.000238,7]
[368788247,1751367049134,-151.0,0.000238,7]
[368788249,1751367049144,-1082.72,0.00023898,5]
[368788251,1751367049153,-1768.55558873,0.000239,2]
[368788253,1751367049163,-557.35987638,0.00023969,10]
[368788255,1751367049174,-1450.29037334,0.00023971,2]
[368788257,1751367049183,-626.44362659,0.00023995,2]
[368788259,1751367049193,-504.5,0.00023995,2]
[368788261,1751367049203,-712.9924315,0.00023995,2]
[368788263,1751367049213,-580.44622181,0.00023996,2]
[368788265,1751367049223,-950.62,0.00023996,2]
[368788267,1751367049233,-1082.72,0.00023998,5]
[368788269,1751367049243,-1000.0,0.00024,24]
[368788271,1751367049254,-524.61914904,0.00024,3]
[368788273,1751367049264,-160.0,0.00024,7]
[368788275,1751367049274,-837.20943635,0.00024,7]
[368788277,1751367049284,-160.0,0.00024,7]
[368788279,1751367049294,-230.32585361,0.00024,7]
[368788281,1751367049304,-1082.72,0.00024098,5]
[368788283,1751367049314,-2000.0,0.000241,2]
[368788285,1751367049324,-550.0,0.00024164,2]
[368788287,1751367049334,-150.0,0.00024164,7]
[368788289,1751367049344,-401.0,0.00024164,7]
[368788291,1751367049355,-239.84119403,0.00024171,2]
[368788293,1751367049371,-1082.72,0.00024198,2]
[368788295,1751367049381,-500.0,0.00024209,2]
[368788297,1751367049390,-152.0,0.0002423,2]
[368788299,1751367049400,-557.35987638,0.00024245,10]
[368788301,1751367049411,-500.0,0.00024294,2]
[368788303,1751367049422,-1082.72,0.00024298,6]
[368788305,1751367049432,-151.0,0.000243,7]
[368788307,1751367049442,-6000.0,0.00024304,2]
[368788309,1751367049452,-168.0,0.00024365,2]
[368788311,1751367049462,-1082.72,0.00024398,2]
[368788313,1751367049472,-835.46,0.000244,7]
[368788315,1751367049482,-500.0,0.00024442,2]
[368788318,1751367049492,-168.0,0.00024454,2]
[368788320,1751367049502,-1082.72,0.00024498,6]
[368788321,1751367049512,-1058.38345535,0.0002451,12]
[368788324,1751367049522,-168.0,0.00024518,2]
[368788325,1751367049532,-557.35987638,0.00024521,11]
[368788327,1751367049541,-966.0,0.00024557,2]
[368788329,1751367049550,-646.0,0.00024557,2]
[368788332,1751367049561,-2151.0,0.00024557,2]
[368788334,1751367049571,-1082.72,0.00024598,6]
[368788336,1751367049580,-500.0,0.00024611,2]
[368788338,1751367049591,-200.0,0.00024658,15]
[368788340,1751367049600,-380.0,0.00024658,2]
[368788342,1751367049610,-1082.72,0.00024698,7]
[368788344,1751367049620,-2000.0,0.000247,2]
[368788346,1751367049629,-2000.0,0.000247,2]
[368788348,1751367049639,-72791.63,0.000247,2]
[368788350,1751367049648,-650.0,0.00024712,2]
[368788352,1751367049657,-168.0,0.00024714,2]
[368788354,1751367049667,-1209.58109183,0.00024755,14]
[368788356,1751367049677,-557.35987638,0.00024797,11]
[368788358,1751367049687,-1082.72,0.00024798,6]
[368788360,1751367049697,-28935.0,0.000248,7]
[368788362,1751367049707,-151.0,0.000248,7]
[368788364,1751367049716,-151.0,0.000248,7]
[368788366,1751367049726,-151.0,0.000248,7]
[368788369,1751367049736,-151.0,0.000248,7]
[368788371,1751367049746,-239.270683,0.000248,7]
[368788373,1751367049755,-151.0,0.000248,7]
[368788375,1751367049765,-151.0,0.000248,7]
[368788377,1751367049774,-151.0,0.000248,7]
[368788379,1751367049783,-151.0,0.000248,7]
[368788381,1751367049793,-151.0,0.000248,7]
[368788383,1751367049803,-151.0,0.000248,7]
[368788385,1751367049812,-151.0,0.000248,7]
[368788387,1751367049822,-151.0,0.000248,7]
[368788389,1751367049832,-151.0,0.000248,7]
[368788391,1751367049841,-151.0,0.000248,7]
[368788393,1751367049850,-3636.40082021,0.000248,2]
[368788395,1751367049859,-3636.40082018,0.00024826,2]
[368788397,1751367049869,-2841.54162117,0.00024852,2]
[368788399,1751367049878,-3636.40082018,0.00024853,2]
[368788401,1751367049887,-500.0,0.00024873,2]
[368788403,1751367049898,-151.0,0.00024877,2]
[368788405,1751367049907,-151.0,0.00024877,2]
[368788407,1751367049916,-151.0,0.00024877,2]
[368788409,1751367049926,-151.0,0.00024877,2]
[368788411,1751367049935,-500.0,0.00024877,2]
[368788413,1751367049945,-151.0,0.00024877,2]
[368788415,1751367049954,-151.0,0.00024877,2]
[368788417,1751367049963,-151.0,0.00024877,2]
[368788419,1751367049974,-151.0,0.00024877,2]
[368788421,1751367049983,-151.79385238,0.00024877,2]
[368788423,1751367049992,-151.0,0.00024877,2]
[368788425,1751367050002,-151.0,0.00024877,2]
[368788427,1751367050011,-151.0,0.00024877,2]
[368788429,1751367050021,-445.0,0.00024877,2]
[368788431,1751367050031,-3636.40082018,0.00024879,2]
[368788433,1751367050040,-1082.72,0.00024898,7]
[368788435,1751367050051,-54012.4,0.000249,7]
[368788437,1751367050062,-7652.89,0.000249,7]
[368788452,1751367050183,-165.29168728,0.000249,2]
[368788455,1751367050195,-151.0,0.000249,7]
[368788457,1751367050204,-151.0,0.000249,7]
[368788459,1751367050214,-198.300075,0.000249,7]
[368788461,1751367050223,-151.0,0.000249,7]
[368788463,1751367050233,-151.0,0.000249,7]
[368788465,1751367050242,-151.0,0.000249,7]
[368788467,1751367050252,-151.910714,0.000249,7]
[368788469,1751367050262,-151.0,0.000249,7]
[368788471,1751367050271,-151.0,0.000249,7]
[368788473,1751367050281,-151.0,0.000249,7]
[368788475,1751367050290,-151.0,0.000249,7]
[368788477,1751367050300,-151.0,0.000249,7]
[368788479,1751367050310,-151.0,0.000249,7]
[368788481,1751367050320,-151.0,0.000249,7]
[368788483,1751367050329,-151.0,0.000249,7]
[368788485,1751367050339,-151.0,0.000249,7]
[368788487,1751367050348,-151.0,0.000249,7]
[368788489,1751367050358,-151.0,0.000249,7]
[368788491,1751367050373,-151.0,0.000249,7]
[368788494,1751367050386,-151.0,0.000249,7]
[368788496,1751367050397,-151.0,0.000249,7]
[368788498,1751367050409,-151.0,0.000249,7]
[368788500,1751367050419,-151.0,0.000249,7]
[368788502,1751367050428,-151.0,0.000249,7]
[368788503,1751367050438,-539.93231,0.000249,7]
[368788505,1751367050449,-539.93231,0.000249,7]
[368788508,1751367050459,-539.93231,0.000249,7]
[368788509,1751367050468,-539.93231,0.000249,7]
[368788512,1751367050481,-151.0,0.000249,7]
[368788514,1751367050490,-151.0,0.000249,7]
[368788516,1751367050500,-296.367576,0.000249,7]
[368788518,1751367050510,-151.0,0.000249,7]
[368788520,1751367050519,-151.0,0.000249,7]
[368788522,1751367050529,-151.0,0.000249,7]
[368788524,1751367050540,-151.0,0.000249,7]
[368788526,1751367050549,-151.0,0.000249,7]
[368788528,1751367050558,-151.0,0.000249,7]
[368788530,1751367050568,-151.0,0.000249,7]
[368788532,1751367050577,-151.0,0.000249,7]
[368788534,1751367050586,-151.0,0.000249,7]
[368788536,1751367050598,-151.0,0.000249,7]
[368788538,1751367050608,-151.0,0.000249,7]
[368788540,1751367050617,-475.665334,0.000249,7]
[368788542,1751367050627,-475.665334,0.000249,7]
[368788544,1751367050636,-151.0,0.000249,7]
[368788546,1751367050647,-475.665334,0.000249,7]
[368788548,1751367050656,-475.665334,0.000249,7]
[368788550,1751367050666,-151.0,0.000249,7]
[368788552,1751367050676,-151.0,0.000249,7]
[368788554,1751367050685,-151.0,0.000249,7]
[368788556,1751367050695,-151.0,0.000249,7]
[368788558,1751367050704,-151.0,0.000249,7]
[368788560,1751367050714,-151.0,0.000249,7]
[368788562,1751367050723,-151.0,0.000249,7]
[368788564,1751367050732,-151.0,0.000249,7]
[368788566,1751367050742,-151.0,0.000249,7]
[368788568,1751367050751,-151.0,0.000249,7]
[368788571,1751367050761,-714300.646984,0.000249,2]
[368788573,1751367050770,-151.0,0.000249,2]
[368788575,1751367050780,-151.0,0.000249,7]
[368788577,1751367050789,-151.0,0.000249,7]
[368788579,1751367050799,-258.57885,0.000249,7]
[368788581,1751367050809,-151.0,0.000249,7]
[368788583,1751367050819,-151.0,0.000249,7]
[368788585,1751367050829,-151.0,0.000249,7]
[368788587,1751367050838,-151.0,0.000249,7]
[368788589,1751367050848,-253.57749747,0.00024904,2]
[368788591,1751367050858,-500.0,0.00024904,2]
[368788593,1751367050867,-151.0,0.00024904,2]
[368788595,1751367050877,-151.0,0.00024904,2]
[368788597,1751367050886,-445.0,0.00024904,2]
[368788599,1751367050895,-3636.40082018,0.00024905,2]
[368788601,1751367050905,-500.0,0.00024913,2]
[368788603,1751367050914,-3636.40082018,0.00024932,2]
[368788605,1751367050923,-500.0,0.00024932,2]
[368788607,1751367050933,-267.68267573,0.00024932,2]
[368788609,1751367050942,-198.0,0.00024932,2]
[368788611,1751367050951,-445.0,0.00024932,2]
[368788613,1751367050961,-168.0,0.00024933,2]
[368788615,1751367050970,-3097.7880908,0.0002495,2]
[368788617,1751367050980,-3636.40082018,0.00024958,2]
[368788620,1751367050990,-500.0,0.00024959,2]
[368788622,1751367051000,-445.0,0.00024959,2]
[368788624,1751367051010,-168.0,0.00024981,2]
[368788626,1751367051020,-3636.40082018,0.00024984,2]
[368788628,1751367051029,-621.0,0.00024987,2]
[368788630,1751367051039,-445.0,0.00024987,2]
[368788632,1751367051049,-1650.50590019,0.0002499,30]
[368788634,1751367051059,-1082.72,0.00024998,3]
[368788636,1751367051068,-1369.0,0.00024999,7]
[368788638,1751367051077,-600.0,0.00025,2]
[368788640,1751367051088,-1061.35136636,0.00025,2]
[368788642,1751367051097,-15963.60811108,0.00025,2]
[368788644,1751367051107,-2613.71432234,0.00025,2]
[368788646,1751367051117,-207.3368676,0.00025,2]
[368788648,1751367051126,-10364.0,0.00025,2]
[368788650,1751367051136,-357.90355067,0.00025,2]
[368788652,1751367051146,-150.0,0.00025,2]
[368788654,1751367051155,-150.0,0.00025,3]
[368788656,1751367051164,-120000.0,0.00025,2]
[368788658,1751367051173,-160.0,0.00025,4]
[368788660,1751367051183,-193.0291445,0.00025,7]
[368788662,1751367051192,-500.0,0.00025,3]
[368788665,1751367051202,-500.0,0.00025,10]
[368788667,1751367051211,-1000.0,0.00025,2]
[368788669,1751367051220,-160.0,0.00025,10]
[368788671,1751367051229,-10281.21442867,0.00025,2]
[368788673,1751367051239,-200.0,0.00025,14]
[368788675,1751367051248,-3200.88695093,0.00025,7]
[368788677,1751367051257,-21616.72813476,0.00025,10]
[368788679,1751367051267,-213.82031328,0.00025,3]
[368788680,1751367051277,-265600.0,0.00025,20]
[368788682,1751367051286,-3623.29022483,0.00025,2]
[368788684,1751367051296,-430.63,0.00025,3]
[368788687,1751367051305,-161.66338967,0.00025,60]
[368788689,1751367051315,-207.17458898,0.00025,120]
[368788691,1751367051325,-157.99176732,0.00025,120]
[368788693,1751367051334,-223.27068908,0.00025,120]
[368788695,1751367051343,-575.21541413,0.00025,120]
[368788697,1751367051352,-637.199999,0.00025,60]
[368788698,1751367051363,-300000.0,0.00025,30]
[368788701,1751367051373,-40000.0,0.00025,15]
[368788703,1751367051383,-10244.0,0.00025,15]
[368788704,1751367051392,-160.0,0.00025,10]
[368788706,1751367051402,-160.0,0.00025,10]
[368788708,1751367051412,-160.0,0.00025,30]
[368788710,1751367051422,-2000.0,0.00025,120]
[368788712,1751367051431,-2000.0,0.00025,120]
[368788714,1751367051441,-2300.0,0.00025,120]
[368788716,1751367051451,-1000.0,0.00025,25]
[368788718,1751367051460,-151.0,0.00025,7]
[368788720,1751367051469,-151.0,0.00025,7]
[368788722,1751367051480,-151.0,0.00025,7]
[368788724,1751367051490,-151.0,0.00025,7]
[368788727,1751367051500,-151.0,0.00025,7]
[368788729,1751367051509,-151.0,0.00025,7]
[368788731,1751367051519,-151.0,0.00025,7]
[368788733,1751367051528,-151.0,0.00025,7]
[368788735,1751367051538,-151.0,0.00025,7]
[368788737,1751367051547,-151.0,0.00025,7]
[368788739,1751367051556,-151.0,0.00025,7]
[368788741,1751367051565,-151.0,0.00025,7]
[368788743,1751367051574,-151.0,0.00025,7]
[368788745,1751367051584,-1978.578016,0.00025,5]
[368788747,1751367051594,-151.0,0.00025,7]
[368788749,1751367051604,-151.0,0.00025,7]
[368788751,1751367051614,-151.0,0.00025,7]
[368788753,1751367051623,-151.0,0.00025,7]
[368788755,1751367051632,-151.0,0.00025,7]
[368788757,1751367051643,-151.0,0.00025,7]
[368788759,1751367051652,-215.01728679,0.00025,30]
[368788761,1751367051662,-539.93231,0.00025,7]
[368788763,1751367051672,-539.93231,0.00025,7]
[368788765,1751367051682,-539.93231,0.00025,7]
[368788767,1751367051691,-539.93231,0.00025,7]
[368788769,1751367051701,-151.0,0.00025,7]
[368788770,1751367051710,-151.0,0.00025,7]
[368788772,1751367051721,-230.187499,0.00025,7]
[368788774,1751367051730,-151.0,0.00025,7]
[368788776,1751367051739,-151.0,0.00025,7]
[368788777,1751367051748,-151.0,0.00025,7]
[368788778,1751367051757,-151.0,0.00025,7]
[368788779,1751367051765,-151.0,0.00025,7]
[368788780,1751367051774,-151.0,0.00025,7]
[368788781,1751367051783,-151.0,0.00025,7]
[368788782,1751367051793,-151.0,0.00025,7]
[368788783,1751367051802,-213.87551669,0.00025,10]
[368788784,1751367051811,-213.87551669,0.00025,30]
[368788785,1751367051820,-154.422424,0.00025,7]
[368788786,1751367051829,-151.0,0.00025,7]
[368788787,1751367051838,-151.0,0.00025,7]
[368788788,1751367051847,-475.665334,0.00025,7]
[368788790,1751367051856,-475.665334,0.00025,7]
[368788792,1751367051866,-178.0,0.00025,7]
[368788794,1751367051875,-151.0,0.00025,7]
[368788796,1751367051884,-151.0,0.00025,7]
[368788798,1751367051893,-475.665334,0.00025,7]
[368788800,1751367051902,-475.665334,0.00025,7]
[368788802,1751367051911,-151.0,0.00025,7]
[368788804,1751367051921,-151.0,0.00025,7]
[368788806,1751367051931,-151.0,0.00025,7]
[368788808,1751367051940,-151.0,0.00025,7]
[368788810,1751367051949,-151.0,0.00025,7]
[368788812,1751367051958,-151.0,0.00025,7]
[368788814,1751367051967,-151.0,0.00025,7]
[368788816,1751367051976,-151.0,0.00025,7]
[368788818,1751367051986,-151.0,0.00025,7]
[368788820,1751367051996,-151.0,0.00025,7]
[368788822,1751367052006,-151.0,0.00025,7]
[368788824,1751367052016,-151.0,0.00025,7]
[368788826,1751367052025,-160.0,0.00025,10]
[368788828,1751367052034,-160.0,0.00025,30]
[368788830,1751367052044,-837.20943635,0.00025,10]
[368788832,1751367052053,-837.20943635,0.00025,30]
[368788834,1751367052062,-160.0,0.00025,10]
[368788836,1751367052071,-160.0,0.00025,30]
[368788838,1751367052080,-230.32585361,0.00025,10]
[368788840,1751367052089,-230.32585361,0.00025,30]
[368788841,1751367052098,-151.0,0.00025,2]
[368788843,1751367052107,-151.0,0.00025,2]
[368788845,1751367052116,-202.828249,0.00025,2]
[368788850,1751367052148,-151.0,0.00025,7]
[368788852,1751367052158,-151.0,0.00025,7]
[368788854,1751367052167,-151.0,0.00025,7]
[368788856,1751367052178,-151.0,0.00025,7]
[368788858,1751367052187,-1209.58109183,0.00025,14]
[368788860,1751367052196,-151.0,0.00025,7]
[368788862,1751367052206,-151.0,0.00025,7]
[368788864,1751367052215,-847.53272281,0.00025,10]
[368788866,1751367052226,-847.53272281,0.00025,30]
[368788868,1751367052235,-2003.34101002,0.0002501,2]
[368788870,1751367052245,-3636.40082018,0.00025011,2]
[368788872,1751367052255,-445.0,0.00025014,2]
[368788874,1751367052264,-596.13337184,0.00025015,2]
[368788876,1751367052273,-884.757293,0.00025016,2]
[368788878,1751367052282,-1450.29037334,0.00025037,2]
[368788880,1751367052291,-3636.40082018,0.00025037,2]
[368788882,1751367052300,-168.74373069,0.00025037,2]
[368788884,1751367052310,-445.0,0.00025041,2]
[368788886,1751367052319,-1152.0,0.00025062,2]
[368788888,1751367052329,-445.0,0.00025069,2]
[368788890,1751367052338,-557.35987638,0.00025072,12]
[368788892,1751367052347,-200.0,0.00025079,120]
[368788894,1751367052357,-445.0,0.00025096,2]
[368788896,1751367052370,-1082.72,0.00025098,4]
[368788898,1751367052379,-2000.0,0.000251,2]
[368788900,1751367052389,-445.0,0.00025124,2]
[368788902,1751367052398,-750.89692743,0.00025129,2]
[368788904,1751367052407,-500.0,0.00025133,120]
[368788906,1751367052417,-501.5397799,0.00025133,120]
[368788908,1751367052426,-151.0,0.00025135,7]
[368788910,1751367052436,-151.0,0.00025136,7]
[368788912,1751367052447,-539.93231,0.00025136,7]
[368788914,1751367052456,-539.93231,0.00025136,7]
[368788916,1751367052466,-539.93231,0.00025136,7]
[368788918,1751367052475,-539.93231,0.00025136,7]
[368788920,1751367052484,-539.93231,0.00025136,7]
[368788922,1751367052494,-539.93231,0.00025136,7]